bitfinex-derivatives/quotes_SOLF0:USTF0_20250426
["timestamp","ask_amount","ask_price","bid_price","bid_amount"]
[1745648539044,5.83783446,151.38,151.34,12.44263446]
[1745648539743,7.76793446,151.39,151.35,5.83783446]
[1745648540042,6.6034,151.38,151.35,5.83783446]
[1745648541339,6.6035,151.37,151.35,5.83783446]
[1745648541536,7.76793446,151.39,151.35,5.83783446]
[1745648541746,12.44113446,151.38,151.35,5.83783446]
[1745648542044,5.83783446,151.37,151.34,5.83783446]
[1745648542240,5.83783446,151.37,151.33,12.44293446]
[1745648542440,12.44163446,151.37,151.33,12.44293446]
[1745648543745,5.83783446,151.37,151.34,6.6047]
[1745648543944,5.83783446,151.35,151.3,23.04]
[1745648544148,5.83783446,151.34,151.3,28.87783446]
[1745648544344,5.83783446,151.34,151.31,6.6061]
[1745648544846,12.44273446,151.34,151.31,6.6061]
[1745648545040,5.83783446,151.34,151.3,28.87783446]
[1745648545645,5.83783446,151.34,151.31,6.6058]
[1745648546944,5.83783446,151.34,151.32,6.6056]
[1745648547348,12.44193446,151.36,151.32,6.6056]
[1745648548145,12.44193446,151.36,151.33,6.6052]
[1745648549149,5.83783446,151.36,151.33,6.6052]
[1745648549650,5.83783446,151.38,151.33,5.83783446]
[1745648550151,5.83783446,151.38,151.35,6.6039]
[1745648550345,18.26193446,151.39,151.35,6.6039]
[1745648550951,5.83783446,151.38,151.35,6.6039]
[1745648551455,12.44093446,151.38,151.35,6.6039]
[1745648552953,12.44093446,151.38,151.34,12.44253446]
[1745648553953,12.44093446,151.38,151.34,6.6047]
[1745648554149,6.6036,151.37,151.34,6.6047]
[1745648554755,6.6036,151.37,151.33,12.44293446]
[1745648554956,12.44143446,151.37,151.33,6.6051]
[1745648555353,12.44143446,151.37,151.32,5.83783446]
[1745648555354,5.83783446,151.36,151.32,12.44343446]
[1745648555553,5.83783446,151.35,151.3,28.87783446]
[1745648555853,5.83783446,151.36,151.31,5.83783446]
[1745648556153,6.6044,151.35,151.31,12.44363446]
[1745648556353,6.6044,151.35,151.32,5.83783446]
[1745648556857,6.6041,151.36,151.32,12.44343446]
[1745648557449,5.83783446,151.37,151.32,12.44343446]
[1745648557655,6.6045,151.35,151.32,12.44343446]
[1745648557957,6.6045,151.35,151.32,5.83783446]
[1745648562355,6.6041,151.36,151.32,12.44343446]
[1745648564156,6.6041,151.36,151.32,12.3738601]
[1745648565160,6.6044,151.35,151.32,12.3738601]
[1745648565556,6.6044,151.35,151.31,12.44383446]
[1745648565756,5.83783446,151.35,151.3,23.04]
[1745648565957,5.83783446,151.33,151.3,23.04]
[1745648566162,5.83783446,151.32,151.28,6.6073]
[1745648566457,6.6062,151.31,151.28,6.6073]
[1745648566759,5.83783446,151.3,151.27,23.02]
[1745648566958,5.83783446,151.29,151.27,23.02]
[1745648567259,5.83783446,151.29,151.25,5.83783446]
[1745648568257,5.83783446,151.29,151.26,6.608]
[1745648570762,5.83783446,151.3,151.27,6.6078]
[1745648571662,12.44443446,151.3,151.26,6.6081]
[1745648571962,12.44443446,151.3,151.25,5.83783446]
[1745648572162,5.83783446,151.31,151.26,5.83783446]
[1745648572755,5.83783446,151.31,151.27,6.6078]
[1745648572960,23.02,151.32,151.25,5.83783446]
[1745648572961,5.83783446,151.29,151.25,5.83783446]
[1745648573160,5.83783446,151.29,151.24,28.85783446]
[1745648573362,5.83783446,151.29,151.25,5.83783446]
[1745648573964,12.44493446,151.29,151.25,12.44653446]
[1745648576258,6.6074,151.28,151.25,12.44653446]
[1745648576464,6.6074,151.28,151.25,6.6087]
[1745648576963,6.6074,151.28,151.24,35.46683446]
[1745648577565,12.44523446,151.28,151.24,35.46683446]
[1745648578165,12.44523446,151.28,151.25,6.6087]
[1745648580557,12.44523446,151.28,151.24,35.46683446]
[1745648581367,5.83783446,151.28,151.25,6.6086]
[1745648581667,12.44493446,151.29,151.25,6.6086]
[1745648584767,6.6075,151.28,151.25,6.6086]
[1745648586567,12.44503446,151.29,151.25,6.6086]
[1745648586766,5.83783446,151.28,151.25,6.6086]
[1745648587067,12.44503446,151.29,151.25,6.6086]
[1745648589465,5.8219,151.31,151.2,6.0237]
[1745648589671,5.83783446,151.26,151.21,23.04]
[1745648589865,5.83783446,151.24,151.21,23.04]
[1745648590268,5.83783446,151.24,151.21,29.6502]
[1745648590673,5.83783446,151.24,151.22,6.61]
[1745648591168,12.44663446,151.25,151.21,28.87783446]
[1745648591775,5.83783446,151.25,151.21,35.48793446]
[1745648591976,5.83783446,151.25,151.21,28.87783446]
[1745648593276,5.83783446,151.25,151.22,6.61]
[1745648597179,6.6085,151.26,151.22,12.44783446]
[1745648597776,35.48583446,151.27,151.23,6.6095]
[1745648598580,35.48583446,151.27,151.23,12.44733446]
[1745648598886,6.6084,151.26,151.22,12.44773446]
[1745648599181,5.83783446,151.25,151.22,6.6099]
[1745648599584,5.83783446,151.25,151.23,6.6096]
[1745648599878,5.83783446,151.26,151.23,6.6096]
[1745648600282,28.87783446,151.27,151.24,6.6089]
[1745648600673,5.83783446,151.26,151.22,5.83783446]
[1745648600876,12.44623446,151.26,151.23,6.6095]
[1745648602483,5.83783446,151.26,151.23,6.6095]
[1745648602876,28.87783446,151.27,151.24,6.6091]
[1745648603282,28.87783446,151.27,151.23,5.83783446]
[1745648603482,5.83783446,151.26,151.23,6.6094]
[1745648604685,12.44623446,151.26,151.22,12.44773446]
[1745648604883,6.6084,151.26,151.22,12.44773446]
[1745648605575,6.6084,151.26,151.23,6.6095]
[1745648606384,6.6084,151.26,151.22,12.44773446]
[1745648609685,29.648,151.27,151.23,12.44733446]
[1745648609885,29.648,151.27,151.23,5.83783446]
[1745648610179,6.608,151.27,151.23,5.83783446]
[1745648611289,6.608,151.27,151.24,6.6091]
[1745648612786,6.608,151.27,151.23,5.83783446]
[1745648613089,6.608,151.27,151.23,12.44733446]
[1745648613687,5.83783446,151.26,151.23,6.6095]
[1745648615392,12.44583446,151.27,151.23,6.6095]
[1745648615592,12.44583446,151.27,151.23,12.44733446]
[1745648616193,12.44583446,151.27,151.24,6.6091]
[1745648617694,5.83783446,151.27,151.24,6.6091]
[1745648618396,12.44573446,151.27,151.24,6.6091]
[1745648621599,5.83783446,151.27,151.24,6.6091]
[1745648623208,12.44573446,151.27,151.23,12.44723446]
[1745648625699,12.44573446,151.27,151.23,5.83783446]
[1745648625907,12.44573446,151.27,151.24,6.6091]
[1745648628107,5.83783446,151.27,151.24,6.6091]
[1745648628304,5.83783446,151.27,151.25,6.6087]
[1745648628904,5.83783446,151.29,151.26,6.6082]
[1745648629306,12.44493446,151.29,151.25,5.83783446]
[1745648629606,12.44493446,151.29,151.25,12.44633446]
[1745648630201,12.44493446,151.29,151.26,6.6082]
[1745648631610,12.44493446,151.29,151.25,12.44633446]
[1745648633714,12.44493446,151.29,151.25,6.6085]
[1745648635312,12.44533446,151.28,151.25,6.6085]
[1745648635813,5.83783446,151.28,151.26,6.6083]
[1745648636014,5.83783446,151.28,151.24,5.83783446]
[1745648636313,5.83783446,151.28,151.25,6.6086]
[1745648637216,12.44533446,151.28,151.25,6.6086]
[1745648639016,5.83783446,151.28,151.25,6.6086]
[1745648640317,12.44563446,151.28,151.24,12.44683446]
[1745648643522,12.44563446,151.28,151.25,6.6086]
[1745648644022,5.83783446,151.28,151.25,6.6086]
[1745648644222,5.83783446,151.28,151.26,6.6082]
[1745648644424,5.83783446,151.28,151.24,5.83783446]
[1745648645226,5.83783446,151.28,151.25,6.6084]
[1745648646725,12.44533446,151.28,151.24,12.44683446]
[1745648647624,12.44533446,151.28,151.25,6.6087]
[1745648647820,6.6071,151.29,151.24,5.83783446]
[1745648648022,28.87783446,151.3,151.24,5.83783446]
[1745648648222,28.87783446,151.3,151.26,6.6082]
[1745648648627,6.607,151.29,151.25,6.6086]
[1745648649027,6.607,151.29,151.24,5.83783446]
[1745648649222,28.87783446,151.3,151.26,5.83783446]
[1745648649528,5.83783446,151.31,151.27,5.83783446]
[1745648649927,5.83783446,151.31,151.28,6.6074]
[1745648651227,12.44403446,151.31,151.28,6.6074]
[1745648655628,5.83783446,151.31,151.28,6.6074]
[1745648657027,12.44403446,151.31,151.23,25.0139]
[1745648657229,5.83783446,151.28,151.23,23.04]
[1745648657929,5.83783446,151.28,151.25,6.6084]
[1745648658933,12.44533446,151.28,151.25,6.6084]
[1745648662430,12.44533446,151.28,151.24,12.44683446]
[1745648662630,12.44533446,151.28,151.24,6.609]
[1745648665532,12.44493446,151.29,151.25,6.6087]
[1745648667737,12.44493446,151.29,151.25,12.44653446]
[1745648668139,5.83783446,151.29,151.26,6.6082]
[1745648668437,35.46453446,151.3,151.25,5.83783446]
[1745648668634,35.46453446,151.3,151.26,12.44583446]
[1745648668834,35.46453446,151.3,151.26,5.83783446]
[1745648669637,23.02,151.3,151.27,5.83783446]
[1745648669937,5.83783446,151.32,151.27,5.83783446]
[1745648670136,5.83783446,151.32,151.29,6.6066]
[1745648670636,5.83783446,151.33,151.3,6.6063]
[1745648673138,12.44323446,151.33,151.3,6.6063]
[1745648676843,12.44323446,151.33,151.29,12.44473446]
[1745648677743,12.44323446,151.33,151.3,6.6065]
[1745648678841,12.44323446,151.33,151.29,12.44463446]
[1745648679844,6.6054,151.33,151.29,12.44463446]
[1745648680044,6.6054,151.33,151.3,6.6065]
[1745648680644,6.6054,151.33,151.29,12.44473446]
[1745648681746,6.6057,151.32,151.29,12.44473446]
[1745648684144,6.6054,151.33,151.29,12.44473446]
[1745648684654,6.6057,151.32,151.29,12.44473446]
[1745648688854,6.6054,151.33,151.29,12.44473446]
[1745648689356,6.6054,151.33,151.3,6.6065]
[1745648691055,29.625,151.34,151.31,6.6061]
[1745648691258,23.02,151.34,151.31,5.83783446]
[1745648691457,9.79593446,151.36,151.31,5.83783446]
[1745648691656,9.79593446,151.36,151.32,5.83783446]
[1745648692158,6.6046,151.35,151.32,12.44323446]
[1745648692359,9.79593446,151.36,151.32,5.83783446]
[1745648692958,3.9581,151.36,151.32,5.83783446]
[1745648693158,2.0761,151.36,151.33,6.605]
[1745648693756,8.6801,151.36,151.33,6.605]
[1745648693962,6.604,151.36,151.33,6.605]
[1745648694158,28.85783446,151.37,151.33,6.605]
[1745648695761,35.46163446,151.37,151.33,6.605]
[1745648696257,6.6039,151.36,151.33,6.605]
[1745648696463,6.6039,151.36,151.32,12.44333446]
[1745648696960,6.6039,151.36,151.33,6.6052]
[1745648698462,6.6039,151.36,151.32,12.44333446]
[1745648699257,6.6039,151.36,151.33,5.83783446]
[1745648699761,35.46153446,151.37,151.33,12.44303446]
[1745648699964,29.6237,151.37,151.33,12.44303446]
[1745648700863,29.6237,151.37,151.33,5.83783446]
[1745648700864,6.604,151.36,151.33,5.83783446]
[1745648702964,6.6044,151.35,151.33,5.83783446]
[1745648703165,28.85783446,151.37,151.32,5.83783446]
[1745648704265,6.604,151.36,151.33,6.6052]
[1745648704565,7.86463446,151.39,151.34,5.83783446]
[1745648704866,30.89403446,151.4,151.36,5.83783446]
[1745648705165,28.85783446,151.4,151.36,5.83783446]
[1745648706165,6.6029,151.39,151.36,5.83783446]
[1745648709862,6.6031,151.38,151.36,5.83783446]
[1745648713167,6.6031,151.38,151.35,5.83783446]
[1745648713467,5.83783446,151.39,151.35,5.83783446]
[1745648713662,5.83783446,151.37,151.33,5.83783446]
[1745648713863,5.83783446,151.37,151.32,5.83783446]
[1745648714166,5.83783446,151.36,151.32,5.83783446]
[1745648714670,6.6047,151.35,151.32,12.44333446]
[1745648715867,6.6047,151.35,151.32,5.83783446]
[1745648717274,5.83783446,151.36,151.31,28.85783446]
[1745648717462,5.83783446,151.33,151.28,28.83783446]
[1745648717668,5.83783446,151.31,151.27,5.83783446]
[1745648717869,6.6073,151.29,151.26,5.83783446]
[1745648718572,6.6075,151.28,151.26,5.83783446]
[1745648719869,6.6071,151.29,151.26,5.83783446]
[1745648720170,5.83783446,151.3,151.26,5.83783446]
[1745648720373,12.44453446,151.3,151.27,5.83783446]
[1745648723872,6.6067,151.3,151.27,5.83783446]
[1745648724873,12.44453446,151.3,151.26,12.44613446]
[1745648727369,6.6071,151.29,151.26,5.83783446]
[1745648727575,5.83783446,151.28,151.25,23.0]
[1745648727872,5.83783446,151.27,151.23,5.83783446]
[1745648728275,5.83783446,151.27,151.24,6.6092]
[1745648730677,5.83783446,151.27,151.25,6.6087]
[1745648730872,5.83783446,151.27,151.23,5.83783446]
[1745648731574,12.44553446,151.28,151.23,5.83783446]
[1745648732276,12.44553446,151.28,151.24,6.609]
[1745648734978,12.44553446,151.28,151.25,6.6087]
[1745648741279,6.6079,151.27,151.24,6.6091]
[1745648741480,5.83783446,151.28,151.24,6.6091]
[1745648741779,12.44573446,151.28,151.24,6.6091]
[1745648741977,5.83783446,151.27,151.24,6.6091]
[1745648743584,5.83783446,151.27,151.25,6.6087]
[1745648743980,12.44573446,151.28,151.25,6.6087]
[1745648744381,5.83783446,151.29,151.26,6.6081]
[1745648744582,5.83783446,151.3,151.26,12.44593446]
[1745648745082,12.44453446,151.3,151.26,12.44593446]
[1745648745377,5.83783446,151.29,151.26,6.6081]
[1745648747383,12.44493446,151.29,151.26,6.6081]
[1745648750590,6.6071,151.29,151.26,6.6081]
[1745648750886,6.6066,151.3,151.27,12.44573446]
[1745648751187,28.85783446,151.32,151.27,5.83783446]
[1745648751383,28.85783446,151.32,151.28,5.83783446]
[1745648751589,29.6258,151.32,151.28,12.44493446]
[1745648752290,23.02,151.32,151.28,5.83783446]
[1745648752790,29.626,151.32,151.28,12.44503446]
[1745648753586,35.46383446,151.32,151.28,12.44503446]
[1745648753890,6.6062,151.31,151.28,12.44503446]
[1745648756795,6.6062,151.31,151.28,5.83783446]
[1745648758893,6.6062,151.31,151.27,12.44563446]
[1745648759097,6.6062,151.31,151.28,5.83783446]
[1745648759294,6.6062,151.31,151.28,12.44513446]
[1745648759496,29.6258,151.32,151.29,5.83783446]
[1745648759795,5.83783446,151.33,151.29,5.83783446]
[1745648759997,5.83783446,151.34,151.3,5.83783446]
[1745648760297,6.6056,151.33,151.3,5.83783446]
[1745648760498,5.83783446,151.34,151.3,5.83783446]
[1745648760796,30.85243446,151.35,151.31,5.83783446]
[1745648760994,25.0146,151.35,151.31,5.83783446]
[1745648761295,31.6193,151.35,151.31,5.83783446]
[1745648761599,31.6193,151.35,151.31,12.44373446]
[1745648762598,6.6049,151.34,151.31,12.44373446]
[1745648766702,29.6245,151.35,151.31,12.44373446]
[1745648766904,29.6245,151.35,151.32,5.83783446]
[1745648768599,6.6048,151.34,151.32,5.83783446]
[1745648768903,23.02,151.35,151.32,5.83783446]
[1745648769097,5.83783446,151.36,151.32,5.83783446]
[1745648769801,6.6045,151.35,151.32,5.83783446]
[1745648774103,6.6042,151.36,151.33,5.83783446]
[1745648774706,6.6042,151.36,151.33,12.44303446]
[1745648776909,28.85783446,151.38,151.34,6.6047]
[1745648777112,28.85783446,151.38,151.35,5.83783446]
[1745648777409,23.02,151.38,151.35,5.83783446]
[1745648777608,23.02,151.38,151.35,12.44213446]
[1745648778109,29.6231,151.38,151.35,12.44213446]
[1745648782213,29.6231,151.38,151.35,5.83783446]
[1745648783413,29.6231,151.38,151.35,12.44213446]
[1745648784313,6.6031,151.38,151.35,12.44213446]
[1745648785116,6.6036,151.37,151.35,5.83783446]
[1745648785311,6.6036,151.37,151.34,12.44253446]
[1745648785614,5.83783446,151.35,151.3,28.85783446]
[1745648785810,12.44253446,151.35,151.31,6.6058]
[1745648786213,6.6052,151.34,151.3,35.46423446]
[1745648786510,6.6052,151.34,151.3,28.85783446]
[1745648787315,6.6052,151.34,151.31,6.606]
[1745648788410,12.44243446,151.35,151.31,6.606]
[1745648789818,6.6046,151.35,151.31,12.44383446]
[1745648791617,12.44243446,151.35,151.31,12.44383446]
[1745648791922,6.6049,151.34,151.31,12.44383446]
[1745648792423,12.44233446,151.35,151.31,12.44383446]
[1745648792716,6.6045,151.35,151.31,12.44383446]
[1745648792918,5.83783446,151.36,151.32,6.6056]
[1745648793120,12.44193446,151.36,151.32,5.83783446]
[1745648793818,6.6041,151.36,151.32,5.83783446]
[1745648794120,28.83783446,151.37,151.33,5.83783446]
[1745648794615,35.44143446,151.37,151.34,6.6045]
[1745648794818,6.6036,151.37,151.34,6.6045]
[1745648796419,6.6036,151.37,151.33,5.83783446]
[1745648796420,6.6036,151.37,151.33,12.44293446]
[1745648796914,12.44143446,151.37,151.33,12.44293446]
[1745648798121,12.44143446,151.37,151.34,6.6048]
[1745648800622,6.6036,151.37,151.34,6.6048]
[1745648801020,6.6036,151.37,151.33,12.44293446]
[1745648801520,6.604,151.36,151.33,12.44293446]
[1745648801721,6.604,151.36,151.33,5.83783446]
[1745648801922,5.83783446,151.36,151.32,12.44343446]
[1745648803326,6.6044,151.35,151.32,12.44343446]
[1745648804226,12.44193446,151.36,151.32,12.44343446]
[1745648804921,12.44193446,151.36,151.33,6.6052]
[1745648805825,6.6041,151.36,151.33,6.6052]
[1745648807323,6.6037,151.37,151.33,6.6052]
[1745648807530,5.83783446,151.38,151.34,6.6046]
[1745648807828,5.83783446,151.38,151.34,12.44243446]
[1745648808028,12.44113446,151.38,151.34,12.44243446]
[1745648809828,12.44113446,151.38,151.35,6.6042]
[1745648811228,6.6033,151.38,151.35,6.6042]
[1745648811624,12.44063446,151.39,151.35,6.6042]
[1745648812031,12.44063446,151.39,151.35,12.44203446]
[1745648813030,37.44503446,151.4,151.36,6.6039]
[1745648813330,31.6072,151.4,151.36,12.44173446]
[1745648813931,6.6027,151.39,151.36,12.44173446]
[1745648817738,6.6027,151.39,151.36,5.83783446]
[1745648817941,6.6032,151.38,151.35,12.44203446]
[1745648818139,6.6032,151.38,151.35,5.83783446]
[1745648818343,6.6032,151.38,151.35,12.44203446]
[1745648818938,6.6032,151.38,151.35,6.6042]
[1745648819241,12.44103446,151.38,151.35,6.6042]
[1745648820239,6.6032,151.38,151.35,6.6042]
[1745648823442,12.44063446,151.39,151.36,6.6038]
[1745648824737,5.83783446,151.39,151.36,6.6038]
[1745648824945,5.83783446,151.42,151.37,5.83783446]
[1745648825243,5.83783446,151.43,151.39,5.83783446]
[1745648825542,28.83783446,151.44,151.39,5.83783446]
[1745648826741,6.6016,151.42,151.39,5.83783446]
[1745648827145,5.83783446,151.43,151.39,5.83783446]
[1745648827637,6.6014,151.42,151.39,5.83783446]
[1745648829045,6.6019,151.41,151.39,5.83783446]
[1745648835247,6.6022,151.4,151.39,5.83783446]
[1745648835450,6.6022,151.4,151.37,12.44123446]
[1745648836952,6.6019,151.41,151.38,5.83783446]
[1745648837147,6.6019,151.41,151.39,5.83783446]
[1745648837347,6.6019,151.41,151.4,5.83783446]
[1745648838651,6.6015,151.42,151.4,5.83783446]
[1745648838851,23.0,151.44,151.4,5.83783446]
[1745648839354,6.6012,151.43,151.4,12.44003446]
[1745648840355,23.0,151.44,151.4,12.44003446]
[1745648840356,6.6013,151.42,151.4,5.83783446]
[1745648840752,6.6013,151.42,151.39,12.44033446]
[1745648840950,5.83783446,151.42,151.38,28.81783446]
[1745648841154,5.83783446,151.42,151.38,5.83783446]
[1745648842255,6.6018,151.41,151.38,5.83783446]
[1745648843457,6.6018,151.41,151.39,5.83783446]
[1745648843653,6.6018,151.41,151.38,12.44073446]
[1745648844256,6.6018,151.41,151.39,5.83783446]
[1745648844853,6.6018,151.41,151.38,12.44073446]
[1745648848960,6.6018,151.41,151.39,5.83783446]
[1745648849156,6.6015,151.42,151.39,5.83783446]
[1745648849361,6.6015,151.42,151.39,12.44033446]
[1745648850159,12.43883446,151.43,151.39,12.44033446]
[1745648850365,12.43883446,151.43,151.4,6.6021]
[1745648852566,6.6014,151.42,151.39,12.44033446]
[1745648854169,6.6011,151.43,151.4,12.44003446]
[1745648855472,12.43893446,151.43,151.4,6.6022]
[1745648856372,6.6011,151.43,151.4,12.44003446]
[1745648856767,12.43893446,151.43,151.4,6.6022]
[1745648857270,6.6011,151.43,151.4,12.44003446]
[1745648857970,6.6014,151.42,151.39,12.44023446]
[1745648860973,6.6013,151.43,151.4,6.6021]
[1745648861474,6.6013,151.43,151.39,12.44023446]
[1745648861875,6.6014,151.42,151.39,12.44023446]
[1745648863076,6.6018,151.41,151.39,5.83783446]
[1745648863379,5.83783446,151.42,151.37,5.83783446]
[1745648863569,12.43943446,151.42,151.38,6.6028]
[1745648863769,12.43943446,151.42,151.38,12.44063446]
[1745648865075,12.43943446,151.42,151.39,6.6025]
[1745648865975,6.601,151.43,151.4,6.6022]
[1745648872775,6.6015,151.42,151.38,12.44053446]
[1745648873678,6.6015,151.42,151.39,6.6026]
[1745648874883,12.43893446,151.43,151.4,6.6022]
[1745648875983,6.6011,151.43,151.4,6.6022]
[1745648876386,12.43893446,151.43,151.4,6.6022]
[1745648876585,12.43893446,151.43,151.39,12.44033446]
[1745648877386,12.43893446,151.43,151.4,6.6021]
[1745648880898,5.83783446,151.43,151.41,6.6016]
[1745648882293,23.0,151.44,151.41,6.6016]
[1745648882494,23.0,151.44,151.42,6.6013]
[1745648882699,7.88053446,151.45,151.41,5.83783446]
[1745648882997,14.48053446,151.45,151.41,12.43933446]
[1745648883299,8.6427,151.45,151.41,5.83783446]
[1745648883699,6.6005,151.44,151.41,5.83783446]
[1745648885501,6.6005,151.44,151.41,12.43953446]
[1745648888800,6.6001,151.45,151.42,6.6013]
[1745648890601,6.6005,151.44,151.41,12.43943446]
[1745648892102,6.6001,151.45,151.42,6.6013]
[1745648894899,6.6001,151.45,151.41,5.83783446]
[1745648894900,5.83783446,151.46,151.41,5.83783446]
[1745648895099,5.83783446,151.46,151.43,5.83783446]
[1745648895495,5.83783446,151.46,151.43,12.43833446]
[1745648896604,28.81783446,151.47,151.43,12.43833446]
[1745648896804,28.81783446,151.47,151.43,6.6005]
[1745648897305,6.5997,151.46,151.43,6.6005]
[1745648897520,28.81783446,151.47,151.42,5.83783446]
[1745648897701,5.83783446,151.46,151.42,5.83783446]
[1745648899305,12.43783446,151.46,151.43,6.6009]
[1745648900003,6.6001,151.45,151.42,12.43903446]
[1745648900607,12.43763446,151.46,151.42,12.43903446]
[1745648902312,6.5998,151.46,151.43,6.6008]
[1745648903214,6.6001,151.45,151.42,12.43903446]
[1745648905410,6.6005,151.44,151.42,5.83783446]
[1745648906615,6.6005,151.44,151.41,35.41943446]
[1745648917621,12.43803446,151.45,151.41,35.41943446]
[1745648917921,6.6002,151.45,151.42,6.6012]
[1745648921324,6.5997,151.46,151.42,6.6012]
[1745648922924,6.6,151.45,151.42,6.6012]
[1745648925719,6.5997,151.46,151.42,6.6012]
[1745648925919,6.5997,151.46,151.43,6.6009]
[1745648931328,6.5997,151.46,151.42,6.6012]
[1745648933030,6.5997,151.46,151.43,6.6008]
[1745648934626,4.0391,151.48,151.43,5.83783446]
[1745648934921,28.81783446,151.49,151.43,5.83783446]
[1745648935425,6.5991,151.48,151.45,6.6]
[1745648936228,6.5991,151.48,151.44,6.6003]
[1745648936527,12.43703446,151.47,151.43,5.83783446]
[1745648936729,12.43703446,151.47,151.43,12.43863446]
[1745648937329,6.5996,151.46,151.43,12.43863446]
[1745648937625,5.83783446,151.47,151.41,28.81783446]
[1745648937825,5.83783446,151.45,151.41,28.81783446]
[1745648938527,5.83783446,151.45,151.41,5.83783446]
[1745648939131,6.6005,151.44,151.41,5.83783446]
[1745648939328,6.6005,151.44,151.4,12.43983446]
[1745648939533,5.83783446,151.45,151.4,12.43983446]
[1745648939831,6.601,151.43,151.4,12.43983446]
[1745648940133,5.83783446,151.45,151.41,6.6017]
[1745648940330,5.83783446,151.45,151.41,12.43953446]
[1745648940631,6.6007,151.44,151.41,12.43953446]
[1745648941031,12.43803446,151.45,151.42,6.6013]
[1745648941233,6.6002,151.45,151.43,5.83783446]
[1745648942033,5.83783446,151.48,151.43,5.83783446]
[1745648942034,6.5997,151.46,151.43,12.43863446]
[1745648942333,5.83783446,151.48,151.43,12.43863446]
[1745648942628,6.5993,151.47,151.44,5.83783446]
[1745648945136,6.5993,151.47,151.44,12.43823446]
[1745648945339,6.5993,151.47,151.44,6.6004]
[1745648946037,6.5996,151.46,151.43,12.43853446]
[1745648951445,6.5993,151.47,151.43,12.43853446]
[1745648951743,12.43713446,151.47,151.43,12.43853446]
[1745648952639,5.83783446,151.47,151.42,29.5812]
[1745648952839,5.83783446,151.46,151.42,35.41903446]
[1745648953036,5.83783446,151.47,151.42,35.41903446]
[1745648953641,5.83783446,151.47,151.43,6.6008]
[1745648953840,5.83783446,151.47,151.42,28.81783446]
[1745648955046,12.43733446,151.47,151.44,6.6004]
[1745648956950,12.43733446,151.47,151.43,6.6008]
[1745648957246,6.5997,151.46,151.43,6.6008]
[1745648960645,6.6003,151.45,151.42,35.41893446]
[1745648960947,5.83783446,151.45,151.42,22.98]
[1745648961146,6.6009,151.44,151.4,12.43983446]
[1745648961349,6.6009,151.44,151.4,5.83783446]
[1745648963051,6.6009,151.44,151.4,12.43963446]
[1745648964652,6.6009,151.44,151.41,6.6017]
[1745648966350,6.6009,151.44,151.4,12.43983446]
[1745648967748,6.6009,151.43,151.4,12.43983446]
[1745648968252,6.6008,151.44,151.4,12.43983446]
[1745648969153,6.6009,151.43,151.4,12.43983446]
[1745648969751,6.6005,151.44,151.41,6.6016]
[1745648970554,6.6005,151.44,151.4,12.43983446]
[1745648970753,6.6005,151.44,151.4,5.83783446]
[1745648971251,6.6005,151.44,151.41,6.6015]
[1745648971455,12.43793446,151.45,151.41,6.6015]
[1745648972555,12.43793446,151.45,151.42,6.6013]
[1745648973056,6.6005,151.44,151.41,6.6016]
[1745648973354,6.6005,151.44,151.41,12.43943446]
[1745648974457,5.83783446,151.45,151.41,12.43943446]
[1745648974458,12.43803446,151.45,151.41,12.43943446]
[1745648975257,12.43803446,151.45,151.42,6.6012]
[1745648978161,12.43803446,151.45,151.41,12.43943446]
[1745648980165,6.6005,151.44,151.41,12.43943446]
[1745648980461,6.6005,151.44,151.41,5.83783446]
[1745648980862,6.6005,151.44,151.4,6.602]
[1745648981665,6.6009,151.43,151.4,6.602]
[1745648988566,6.6009,151.43,151.41,5.83783446]
[1745648988873,6.6006,151.44,151.41,12.43953446]
[1745648991067,6.6006,151.44,151.41,5.83783446]
[1745648991268,6.6009,151.43,151.41,5.83783446]
[1745648994074,6.6009,151.43,151.4,6.602]
[1745648998573,6.6014,151.42,151.39,35.40033446]
[1745648999077,5.83783446,151.45,151.39,35.40033446]
[1745648999078,5.83783446,151.45,151.39,28.79783446]
[1745648999877,6.6012,151.43,151.4,6.6022]
[1745649001073,6.6014,151.42,151.39,35.40033446]
[1745649001377,5.83783446,151.45,151.39,28.79783446]
[1745649001580,5.83783446,151.43,151.39,28.79783446]
[1745649001774,5.83783446,151.43,151.39,5.83783446]
[1745649002878,6.6022,151.4,151.39,5.83783446]
[1745649003377,6.6022,151.4,151.38,12.44093446]
[1745649004079,6.6018,151.41,151.38,12.44093446]